fUST/lending_fUST_20250121
["ID","MTS","AMOUNT","RATE_DAILY","PERIOD"]
[349717294,1737391845774,-500.0,0.00022876,3]
[349717296,1737391845783,-780.49,0.00022876,3]
[349717298,1737391845793,-598.04,0.00022876,3]
[349717300,1737391845805,-1724.46510505,0.000229,3]
[349717301,1737391845815,-1724.46510492,0.00022969,3]
[349717304,1737391845825,-500.0,0.00023013,3]
[349717305,1737391845834,-1330.65,0.00023013,3]
[349717307,1737391845844,-2870.88,0.00023013,3]
[349717309,1737391845853,-587.83,0.00023013,3]
[349717311,1737391845862,-500.0,0.00023013,3]
[349717313,1737391845871,-500.0,0.00023013,3]
[349717315,1737391845881,-637.36,0.00023013,3]
[349717317,1737391845891,-382.37,0.00023013,3]
[349717319,1737391845900,-780.49,0.00023013,3]
[349717321,1737391845909,-598.04,0.00023013,3]
[349717323,1737391845918,-195.7430769,0.00023036,2]
[349717325,1737391845928,-2746.9,0.00023037,3]
[349717327,1737391845939,-2746.9,0.00023037,3]
[349717329,1737391845949,-2746.9,0.00023037,3]
[349717332,1737391845959,-2746.9,0.00023037,3]
[349717337,1737391845969,-2747.08237784,0.00023037,3]
[349717339,1737391845978,-1724.46510492,0.00023038,3]
[349717341,1737391845987,-490.892,0.0002306,2]
[349717343,1737391845998,-1724.46510492,0.00023107,3]
[349717345,1737391846008,-528.79,0.00023149,3]
[349717347,1737391846018,-528.79,0.00023149,3]
[349717349,1737391846027,-528.79,0.00023149,3]
[349717351,1737391846036,-528.79,0.00023149,3]
[349717353,1737391846048,-528.83,0.00023149,3]
[349717355,1737391846058,-500.0,0.00023149,3]
[349717357,1737391846068,-500.0,0.00023149,3]
[349717359,1737391846078,-500.0,0.00023149,3]
[349717361,1737391846087,-315.5,0.00023149,3]
[349717363,1737391846097,-500.0,0.0002315,3]
[349717365,1737391846107,-1330.65,0.0002315,3]
[349717367,1737391846117,-2870.88,0.0002315,3]
[349717369,1737391846126,-587.83,0.0002315,3]
[349717371,1737391846135,-500.0,0.0002315,3]
[349717373,1737391846145,-513.42,0.0002315,3]
[349717375,1737391846155,-637.36,0.0002315,3]
[349717377,1737391846166,-780.49,0.0002315,3]
[349717379,1737391846175,-598.04,0.0002315,3]
[349717381,1737391846185,-1724.46510492,0.00023176,3]
[349717383,1737391846194,-1724.46510492,0.00023245,3]
[349717385,1737391846204,-500.0,0.00023287,3]
[349717387,1737391846213,-1330.65,0.00023287,3]
[349717389,1737391846223,-2870.88,0.00023287,3]
[349717391,1737391846232,-587.83,0.00023287,3]
[349717393,1737391846242,-500.0,0.00023287,3]
[349717396,1737391846253,-637.36,0.00023287,3]
[349717398,1737391846263,-780.49,0.00023287,3]
[349717400,1737391846272,-598.04,0.00023287,3]
[349717402,1737391846282,-1724.46510492,0.00023314,3]
[349717404,1737391846291,-441.5251945,0.00023315,2]
[349717406,1737391846303,-1724.46510492,0.00023383,3]
[349717408,1737391846313,-500.0,0.00023424,3]
[349717410,1737391846323,-1330.65,0.00023424,3]
[349717412,1737391846332,-2870.88,0.00023424,3]
[349717414,1737391846342,-587.83,0.00023424,3]
[349717416,1737391846352,-500.0,0.00023424,3]
[349717418,1737391846365,-637.36,0.00023424,3]
[349717420,1737391846375,-780.49,0.00023424,3]
[349717422,1737391846384,-598.04,0.00023424,3]
[349717424,1737391846393,-1724.46510492,0.00023452,3]
[349717426,1737391846404,-372.62,0.000235,2]
[349717428,1737391846414,-1724.46510492,0.00023521,3]
[349717430,1737391846424,-467.73175196,0.00023522,2]
[349717432,1737391846432,-500.0,0.00023561,3]
[349717434,1737391846442,-1330.65,0.00023561,3]
[349717436,1737391846452,-2870.88,0.00023561,3]
[349717438,1737391846461,-587.83,0.00023561,3]
[349717440,1737391846471,-500.0,0.00023561,3]
[349717442,1737391846481,-637.36,0.00023561,3]
[349717444,1737391846490,-780.49,0.00023561,3]
[349717446,1737391846500,-598.04,0.00023561,3]
[349717448,1737391846510,-1724.46510492,0.0002359,3]
[349717450,1737391846520,-1724.46510492,0.00023659,3]
[349717452,1737391846529,-500.0,0.00023698,3]
[349717454,1737391846539,-1330.65,0.00023698,3]
[349717456,1737391846552,-2870.88,0.00023698,3]
[349717458,1737391846561,-587.83,0.00023698,3]
[349717460,1737391846571,-500.0,0.00023698,3]
[349717462,1737391846581,-637.36,0.00023698,3]
[349717464,1737391846590,-780.49,0.00023698,3]
[349717466,1737391846600,-598.04,0.00023698,3]
[349717468,1737391846610,-300.0,0.000237,11]
[349717471,1737391846620,-1724.46510492,0.00023728,3]
[349717473,1737391846630,-395.0,0.0002375,2]
[349717475,1737391846639,-1724.46510492,0.00023797,3]
[349717477,1737391846650,-9226.27421977,0.00023801,2]
[349717479,1737391846660,-420.0,0.00023817,2]
[349717481,1737391846669,-474.73601976,0.00023835,3]
[349717492,1737391846769,-1330.65,0.00023835,3]
[349717494,1737391846781,-2870.88,0.00023835,3]
[349717496,1737391846791,-587.83,0.00023835,3]
[349717498,1737391846804,-500.0,0.00023835,3]
[349717500,1737391846814,-637.36,0.00023835,3]
[349717503,1737391846824,-780.49,0.00023835,3]
[349717505,1737391846834,-598.04,0.00023835,3]
[349717506,1737391846844,-1724.46510492,0.00023866,3]
[349717509,1737391846854,-1724.46510492,0.00023934,3]
[349717511,1737391846864,-9226.27421977,0.00023946,2]
[349717512,1737391846874,-1330.65,0.00023972,3]
[349717515,1737391846884,-2870.88,0.00023972,3]
[349717517,1737391846893,-587.83,0.00023972,3]
[349717519,1737391846903,-500.0,0.00023972,3]
[349717521,1737391846912,-637.36,0.00023972,3]
[349717523,1737391846921,-780.49,0.00023972,3]
[349717525,1737391846930,-598.04,0.00023972,3]
[349717527,1737391846940,-155637.75091735,0.00024,2]
[349717535,1737391847013,-44820.56943275,0.00024,2]
[349717537,1737391847025,-54485.58173749,0.00024,2]
[349717540,1737391847039,-509.765,0.00024,2]
[349717542,1737391847053,-1053620.37024199,0.00024,2]
[349717544,1737391847062,-1724.46510492,0.00024003,3]
[349717546,1737391847072,-1724.46510492,0.00024072,3]
[349717548,1737391847081,-185.0,0.00024081,2]
[349717550,1737391847090,-185.21,0.00024081,2]
[349717552,1737391847099,-151.0,0.000241,9]
[349717554,1737391847108,-1330.65,0.00024109,3]
[349717556,1737391847117,-2870.88,0.00024109,3]
[349717558,1737391847126,-587.83,0.00024109,3]
[349717560,1737391847136,-500.0,0.00024109,3]
[349717562,1737391847145,-637.36,0.00024109,3]
[349717564,1737391847154,-780.49,0.00024109,3]
[349717566,1737391847163,-598.04,0.00024109,3]
[349717568,1737391847173,-1724.46510492,0.00024141,3]
[349717570,1737391847182,-606.88828241,0.00024143,12]
[349717572,1737391847192,-151.0,0.000242,10]
[349717574,1737391847201,-704.89,0.000242,7]
[349717576,1737391847210,-1724.46510492,0.0002421,3]
[349717577,1737391847220,-166.075173,0.00024224,2]
[349717579,1737391847229,-1330.65,0.00024246,3]
[349717581,1737391847238,-2870.88,0.00024246,3]
[349717583,1737391847248,-587.83,0.00024246,3]
[349717585,1737391847258,-269.3793368,0.00024246,3]
[349717587,1737391847268,-637.36,0.00024246,3]
[349717589,1737391847277,-780.49,0.00024246,3]
[349717591,1737391847287,-598.04,0.00024246,3]
[349717593,1737391847296,-1641.373,0.00024264,2]
[349717595,1737391847307,-151.0,0.00024266,7]
[349717597,1737391847316,-151.0,0.00024266,7]
[349717599,1737391847325,-151.0,0.00024266,7]
[349717601,1737391847334,-151.0,0.00024266,7]
[349717603,1737391847343,-259.822071,0.00024266,7]
[349717605,1737391847353,-151.0,0.00024266,7]
[349717607,1737391847363,-151.0,0.00024266,7]
[349717609,1737391847375,-301.999999,0.00024266,7]
[349717611,1737391847384,-10643.79312944,0.00024266,5]
[349717613,1737391847394,-4032.38606045,0.00024266,5]
[349717615,1737391847404,-1359807.55518551,0.00024266,61]
[349717618,1737391847423,-733.4,0.00021698,2]
[349717620,1737391847434,-10529.24146341,0.00021698,2]
[349717623,1737391847445,-12665.51091683,0.00024266,61]
[349717625,1737391847456,-6700.0,0.00024266,61]
[349717627,1737391847467,-7339.34770457,0.00024266,61]
[349717629,1737391847477,-6676.83873566,0.00024266,61]
[349717631,1737391847489,-280.44625145,0.00024266,61]
[349717633,1737391847500,-4874.98406394,0.00024266,61]
[349717636,1737391847511,-1000.0,0.00024266,61]
[349717650,1737391847642,-0.02495718,0.00024266,61]
[349717653,1737391847662,-498.99700567,0.00024266,61]
[349717770,1737392116978,30000.0,0.000167,2]
[349717775,1737392775684,166.075173,0.00013973,2]
[349717859,1737393035205,-500.0,0.00018112,2]
[349717861,1737393035232,-464.96799901,0.00018195,2]
[349717863,1737393035241,-500.0,0.00018295,2]
[349717865,1737393035251,-596.03200099,0.00020008,2]
[349717867,1737393035263,-562.58596344,0.00020008,2]
[349717869,1737393035274,-1069.38203557,0.00020008,2]
[349717871,1737393035283,-500.0,0.00020432,2]
[349717873,1737393035292,-234.6793016,0.00020458,2]
[349717874,1737393035301,-277.357425,0.00020608,2]
[349717876,1737393035310,-2228.0,0.00021608,4]
[349717878,1737393035320,-472.48355474,0.00021617,2]
[349717880,1737393035330,-166.70221922,0.00021817,2]
[349717882,1737393035341,-300.0,0.00021899,2]
[349717883,1737393035350,-3000.0,0.000219,2]
[349717885,1737393035359,-1915.93456586,0.000219,3]
[349717887,1737393035368,-3000.0,0.0002191,2]
[349717889,1737393035378,-167.642,0.00021916,2]
[349717891,1737393035387,-450.68598902,0.00021917,3]
[349717893,1737393035396,-183.99531828,0.00021917,3]
[349717894,1737393035405,-339.01535218,0.00021917,3]
[349717896,1737393035414,-500.0,0.00021917,3]
[349717898,1737393035423,-500.0,0.00021917,3]
[349717900,1737393035432,-500.0,0.00021917,3]
[349717901,1737393035442,-500.0,0.00021917,3]
[349717903,1737393035451,-500.0,0.00021917,3]
[349717905,1737393035460,-500.0,0.00021917,3]
[349717907,1737393035469,-501.03747084,0.00021917,3]
[349717909,1737393035479,-500.0,0.00021917,3]
[349717911,1737393035488,-500.95617647,0.00021917,3]
[349717913,1737393035498,-500.0,0.00021917,3]
[349717915,1737393035508,-500.0,0.00021917,3]
[349717917,1737393035518,-500.0,0.00021917,3]
[349717918,1737393035527,-500.0,0.00021917,3]
[349717920,1737393035537,-500.0,0.00021917,3]
[349717922,1737393035546,-500.0,0.00021917,3]
[349717924,1737393035556,-500.9027951,0.00021917,3]
[349717926,1737393035567,-500.0,0.00021917,3]
[349717928,1737393035576,-501.36751427,0.00021917,3]
[349717930,1737393035586,-500.0,0.00021917,3]
[349717932,1737393035596,-500.66201974,0.00021917,3]
[349717934,1737393035605,-500.0,0.00021917,3]
[349717935,1737393035615,-501.97707428,0.00021917,3]
[349717937,1737393035625,-500.0,0.00021917,3]
[349717939,1737393035634,-500.0,0.00021917,3]
[349717941,1737393035643,-503.34240989,0.00021917,3]
[349717943,1737393035652,-501.12991403,0.00021917,3]
[349717945,1737393035662,-219.7327092,0.00021917,3]
[349717947,1737393035672,-500.0,0.00021917,3]
[349717948,1737393035681,-500.0,0.00021917,3]
[349717950,1737393035691,-500.0,0.00021917,3]
[349717952,1737393035700,-500.0,0.00021917,3]
[349717954,1737393035712,-500.0,0.00021917,3]
[349717956,1737393035732,-500.0,0.00021917,3]
[349717957,1737393035742,-516.71877764,0.00021917,3]
[349717959,1737393035752,-500.53221829,0.00021917,3]
[349717961,1737393035761,-500.0,0.00021917,3]
[349717963,1737393035773,-500.0,0.00021917,3]
[349717965,1737393035782,-500.0,0.00021917,3]
[349717967,1737393035793,-500.0,0.00021917,3]
[349717969,1737393035802,-500.0,0.00021917,3]
[349717971,1737393035811,-500.0,0.00021917,3]
[349717973,1737393035820,-500.0,0.00021917,3]
[349717974,1737393035829,-451.95790595,0.00021917,3]
[349717976,1737393035839,-500.0,0.00021917,3]
[349717978,1737393035851,-500.0,0.00021917,3]
[349717980,1737393035863,-1000.0,0.00021917,3]
[349717982,1737393035872,-500.0,0.00021917,3]
[349717984,1737393035882,-500.0,0.00021917,3]
[349717986,1737393035891,-500.0,0.00021917,3]
[349717988,1737393035900,-501.13666698,0.00021917,3]
[349717990,1737393035909,-500.0,0.00021917,3]
[349717991,1737393035919,-500.0,0.00021917,3]
[349717993,1737393035930,-500.0,0.00021917,3]
[349717995,1737393035939,-500.0,0.00021917,3]
[349717997,1737393035948,-500.0,0.00021917,3]
[349717999,1737393035957,-505.76327114,0.00021917,3]
[349718000,1737393035966,-500.0,0.00021917,3]
[349718002,1737393035978,-500.62357188,0.00021917,3]
[349718004,1737393035987,-500.0,0.00021917,3]
[349718006,1737393035996,-500.0,0.00021917,3]
[349718008,1737393036006,-500.20661502,0.00021917,3]
[349718010,1737393036016,-500.0,0.00021917,3]
[349718012,1737393036025,-500.0,0.00021917,3]
[349718014,1737393036034,-500.0,0.00021917,3]
[349718016,1737393036043,-500.0,0.00021917,3]
[349718018,1737393036054,-500.0,0.00021917,3]
[349718020,1737393036063,-501.04503381,0.00021917,3]
[349718021,1737393036073,-500.0,0.00021917,3]
[349718023,1737393036082,-500.0,0.00021917,3]
[349718025,1737393036091,-500.0,0.00021917,3]
[349718027,1737393036100,-500.0,0.00021917,3]
[349718029,1737393036110,-500.0,0.00021917,3]
[349718031,1737393036119,-501.07946339,0.00021917,3]
[349718033,1737393036129,-500.0,0.00021917,3]
[349718035,1737393036138,-501.91271505,0.00021917,3]
[349718037,1737393036148,-504.20267944,0.00021917,3]
[349718038,1737393036157,-500.81278663,0.00021917,3]
[349718040,1737393036167,-500.0,0.00021917,3]
[349718042,1737393036176,-500.0,0.00021917,3]
[349718044,1737393036185,-515.22010929,0.00021917,3]
[349718046,1737393036195,-500.0,0.00021917,3]
[349718048,1737393036204,-500.0,0.00021917,3]
[349718050,1737393036228,-500.0,0.00021917,3]
[349718052,1737393036238,-230.81404114,0.00021917,3]
[349718053,1737393036247,-500.0,0.00021917,3]
[349718055,1737393036256,-500.0,0.00021917,3]
[349718057,1737393036265,-500.0,0.00021917,3]
[349718059,1737393036275,-500.0,0.00021917,3]
[349718061,1737393036284,-500.0,0.00021917,3]
[349718063,1737393036293,-500.0,0.00021917,3]
[349718065,1737393036302,-500.0,0.00021917,3]
[349718067,1737393036312,-500.0,0.00021917,3]
[349718068,1737393036322,-500.0,0.00021917,3]
[349718070,1737393036331,-500.0,0.00021917,3]
[349718072,1737393036340,-500.0,0.00021917,3]
[349718074,1737393036351,-500.0,0.00021917,3]
[349718076,1737393036360,-500.0,0.00021917,3]
[349718078,1737393036370,-500.0,0.00021917,3]
[349718080,1737393036380,-500.0,0.00021917,3]
[349718082,1737393036389,-500.0,0.00021917,3]
[349718084,1737393036399,-500.0,0.00021917,3]
[349718086,1737393036409,-500.0,0.00021917,3]
[349718088,1737393036419,-500.0,0.00021917,3]
[349718089,1737393036428,-500.0,0.00021917,3]
[349718091,1737393036437,-500.0,0.00021917,3]
[349718093,1737393036446,-822.28,0.00021917,3]
[349718095,1737393036456,-822.28,0.00021917,3]
[349718097,1737393036464,-500.0,0.00021917,3]
[349718099,1737393036474,-822.28,0.00021917,3]
[349718101,1737393036483,-822.28,0.00021917,3]
[349718102,1737393036492,-822.28,0.00021917,3]
[349718104,1737393036501,-822.28,0.00021917,3]
[349718106,1737393036510,-822.28,0.00021917,3]
[349718108,1737393036520,-822.28,0.00021917,3]
[349718110,1737393036529,-500.0,0.00021917,3]
[349718112,1737393036538,-500.0,0.00021917,3]
[349718114,1737393036547,-500.0,0.00021917,3]
[349718116,1737393036556,-500.0,0.00021917,3]
[349718118,1737393036565,-500.0,0.00021917,3]
[349718119,1737393036575,-500.0,0.00021917,3]
[349718121,1737393036584,-500.0,0.00021917,3]
[349718123,1737393036595,-500.0,0.00021917,3]
[349718125,1737393036605,-500.85546116,0.00021917,3]
[349718127,1737393036615,-500.0,0.00021917,3]
[349718129,1737393036624,-505.1489807,0.00021917,3]
[349718131,1737393036634,-500.0,0.00021917,3]
[349718133,1737393036643,-500.0,0.00021917,3]
[349718135,1737393036652,-500.0,0.00021917,3]
[349718137,1737393036661,-500.0,0.00021917,3]
[349718139,1737393036671,-312.7742496,0.00021917,3]
[349718140,1737393036680,-500.0,0.00021917,3]
[349718142,1737393036692,-500.0,0.00021917,3]
[349718144,1737393036701,-500.0,0.00021917,3]
[349718146,1737393036715,-500.0,0.00021917,3]
[349718148,1737393036732,-500.72683027,0.00021917,3]
[349718150,1737393036741,-500.0,0.00021917,3]
[349718152,1737393036754,-500.0,0.00021917,3]
[349718154,1737393036763,-500.0,0.00021917,3]
[349718156,1737393036775,-500.0,0.00021917,3]
[349718158,1737393036784,-500.0,0.00021917,3]
[349718160,1737393036795,-500.0,0.00021917,3]
[349718162,1737393036804,-500.0,0.00021917,3]
[349718164,1737393036814,-500.0,0.00021917,3]
[349718166,1737393036824,-500.0,0.00021917,3]
[349718168,1737393036935,-500.48710006,0.00021917,3]
[349718169,1737393036945,-500.0,0.00021917,3]
[349718170,1737393036955,-500.0,0.00021917,3]
[349718171,1737393036964,-500.0,0.00021917,3]
[349718172,1737393036974,-500.0,0.00021917,3]
[349718173,1737393036983,-500.0,0.00021917,3]
[349718174,1737393036993,-500.0,0.00021917,3]
[349718175,1737393037004,-500.0,0.00021917,3]
[349718176,1737393037014,-500.0,0.00021917,3]
[349718177,1737393037023,-500.0,0.00021917,3]
[349718178,1737393037033,-500.0,0.00021917,3]
[349718179,1737393037042,-500.0,0.00021917,3]
[349718180,1737393037051,-500.0,0.00021917,3]
[349718181,1737393037061,-500.0,0.00021917,3]
[349718183,1737393037070,-500.0,0.00021917,3]
[349718185,1737393037079,-500.0,0.00021917,3]
[349718187,1737393037088,-500.0,0.00021917,3]
[349718189,1737393037098,-500.0,0.00021917,3]
[349718191,1737393037108,-501.25233139,0.00021917,3]
[349718193,1737393037117,-500.0,0.00021917,3]
[349718195,1737393037127,-649.86,0.00021917,3]
[349718196,1737393037138,-649.86,0.00021917,3]
[349718199,1737393037150,-649.86,0.00021917,3]
[349718200,1737393037159,-649.86,0.00021917,3]
[349718202,1737393037169,-500.0,0.00021917,3]
[349718204,1737393037179,-649.86,0.00021917,3]
[349718207,1737393037189,-582.20334587,0.00021917,3]
[349718209,1737393037206,-67.65665413,0.00021917,3]
[349718211,1737393037230,-649.86,0.00021917,3]
[349718213,1737393037239,-649.86,0.00021917,3]
[349718215,1737393037249,-500.0,0.00021917,3]
[349718217,1737393037259,-500.0,0.00021917,3]
[349718219,1737393037268,-492.42982811,0.00021917,3]
[349718221,1737393037277,-500.0,0.00021917,3]
[349718223,1737393037287,-500.0,0.00021917,3]
[349718225,1737393037297,-500.0,0.00021917,3]
[349718227,1737393037306,-1030.23495999,0.00021917,3]
[349718229,1737393037315,-500.0,0.00021917,3]
[349718231,1737393037325,-500.0,0.00021917,3]
[349718233,1737393037334,-500.0,0.00021917,3]
[349718235,1737393037343,-500.0,0.00021917,3]
[349718237,1737393037352,-500.0,0.00021917,3]
[349718239,1737393037361,-500.0,0.00021917,3]
[349718241,1737393037371,-500.0,0.00021917,3]
[349718243,1737393037381,-500.0,0.00021917,3]
[349718245,1737393037390,-500.0,0.00021917,3]
[349718247,1737393037399,-500.0,0.00021917,3]
[349718249,1737393037409,-543.2975498,0.00021917,3]
[349718251,1737393037419,-500.0,0.00021917,3]
[349718253,1737393037428,-182.40436957,0.00021917,3]
[349718255,1737393037437,-159.24557031,0.00021917,3]
[349718257,1737393037447,-500.0,0.00021917,3]
[349718259,1737393037456,-501.05401147,0.00021917,3]
[349718261,1737393037465,-500.0,0.00021917,3]
[349718263,1737393037475,-500.0,0.00021917,3]
[349718265,1737393037484,-500.0,0.00021917,3]
[349718267,1737393037494,-469.79453863,0.00021917,3]
[349718270,1737393037508,-30.20546137,0.00021917,3]
[349718272,1737393037517,-503.34315716,0.00021917,3]
[349718274,1737393037527,-500.0,0.00021917,3]
[349718276,1737393037537,-30.65138147,0.00021917,3]
[349718477,1737393039741,-1000.0,0.00021698,2]
[349718479,1737393039756,-503.77396881,0.00021917,3]
[349718481,1737393039766,-500.0,0.00021917,3]
[349718483,1737393039776,-500.0,0.00021917,3]
[349718485,1737393039785,-500.0,0.00021917,2]
[349718487,1737393039795,-500.0,0.00021917,3]
[349718489,1737393039805,-500.0,0.00021917,3]
[349718491,1737393039814,-1254.55,0.00021917,3]
[349718493,1737393039824,-511.62838714,0.00021917,3]
[349718496,1737393039835,-500.0,0.00021917,3]
[349718498,1737393039844,-500.0,0.00021917,3]
[349718500,1737393039854,-500.0,0.00021917,3]
[349718501,1737393039863,-410.29659809,0.00021917,3]
[349718503,1737393039872,-500.0,0.00021917,3]
[349718505,1737393039881,-522.43014898,0.00021917,3]
[349718507,1737393039891,-500.0,0.00021917,3]
[349718509,1737393039900,-500.0,0.00021917,3]
[349718511,1737393039909,-500.0,0.00021917,3]
[349718514,1737393039919,-500.0,0.00021917,3]
[349718517,1737393039928,-500.0,0.00021917,3]
[349718520,1737393039938,-502.10408614,0.00021917,3]
[349718523,1737393039948,-500.0,0.00021917,3]
[349718526,1737393039958,-500.0,0.00021917,3]
[349718529,1737393039979,-500.0,0.00021917,3]
[349718531,1737393039988,-280.00971578,0.00021917,3]
[349718533,1737393039997,-500.0,0.00021917,3]
[349718535,1737393040007,-501.91014212,0.00021917,3]
[349718537,1737393040016,-500.0,0.00021917,3]
[349718539,1737393040025,-521.19884162,0.00021917,3]
[349718541,1737393040036,-2949.76,0.00021917,3]
[349718543,1737393040045,-500.0,0.00021917,3]
[349718546,1737393040057,-500.0,0.00021917,3]
[349718548,1737393040070,-500.0,0.00021917,3]
[349718550,1737393040084,-500.0,0.00021917,3]
[349718553,1737393040097,-160.58998207,0.00021917,3]
[349718555,1737393040112,-339.41001793,0.00021917,3]
[349718558,1737393040123,-500.0,0.00021917,3]
[349718562,1737393040134,-500.0,0.00021917,3]
[349718565,1737393040147,-657.92,0.00021917,3]
[349718568,1737393040159,-500.0,0.00021917,3]
[349718571,1737393040173,-504.68450379,0.00021917,3]
[349718573,1737393040186,-500.0,0.00021917,3]
[349718575,1737393040198,-505.69140738,0.00021917,3]
[349718577,1737393040210,-631.49941424,0.00021917,3]
[349718580,1737393040230,-500.0,0.00021917,3]
[349718582,1737393040241,-500.0,0.00021917,3]
[349718583,1737393040253,-500.0,0.00021917,3]
[349718584,1737393040265,-500.0,0.00021917,3]
[349718585,1737393040278,-500.0,0.00021917,3]
[349718586,1737393040289,-500.0,0.00021917,3]
[349718587,1737393040300,-500.0,0.00021917,3]
[349718588,1737393040311,-500.0,0.00021917,3]
[349718589,1737393040322,-500.57684945,0.00021917,3]
[349718590,1737393040334,-501.53031033,0.00021917,3]
[349718591,1737393040345,-500.0,0.00021917,3]
[349718592,1737393040357,-500.0,0.00021917,3]
[349718593,1737393040371,-500.0,0.00021917,3]
[349718594,1737393040382,-500.0,0.00021917,3]
[349718595,1737393040395,-500.0,0.00021917,3]
[349718597,1737393040407,-500.0,0.00021917,3]
[349718600,1737393040419,-500.0,0.00021917,3]
[349718602,1737393040430,-500.0,0.00021917,3]
[349718604,1737393040441,-500.0,0.00021917,3]
[349718606,1737393040454,-500.0,0.00021917,3]
[349718608,1737393040474,-500.0,0.00021917,3]
[349718610,1737393040487,-500.0,0.00021917,3]
[349718613,1737393040500,-501.26397764,0.00021917,3]
[349718615,1737393040513,-500.0,0.00021917,3]
[349718617,1737393040525,-500.0,0.00021917,3]
[349718619,1737393040538,-276.29896564,0.00021917,3]
[349718621,1737393040550,-500.0,0.00021917,3]
[349718624,1737393040564,-500.0,0.00021917,3]
[349718626,1737393040576,-501.82953963,0.00021917,3]
[349718629,1737393040589,-500.0,0.00021917,3]
[349718631,1737393040603,-500.0,0.00021917,3]
[349718633,1737393040615,-500.0,0.00021917,3]
[349718635,1737393040626,-505.9561018,0.00021917,3]
[349718637,1737393040637,-500.0,0.00021917,3]
[349718639,1737393040647,-500.0,0.00021917,3]
[349718641,1737393040657,-500.0,0.00021917,3]
[349718644,1737393040669,-500.0,0.00021917,3]
[349718646,1737393040680,-500.0,0.00021917,3]
[349718648,1737393040694,-500.0,0.00021917,3]
[349718650,1737393040707,-500.0,0.00021917,3]
[349718653,1737393040728,-501.33398381,0.00021917,3]
[349718655,1737393040741,-621.82,0.00021917,3]
[349718657,1737393040755,-500.0,0.00021917,3]
[349718659,1737393040765,-500.0,0.00021917,3]
[349718661,1737393040775,-500.0,0.00021917,3]
[349718663,1737393040786,-501.08777645,0.00021917,3]
[349718666,1737393040798,-500.0,0.00021917,3]
[349718668,1737393040810,-403.094666,0.00021917,3]
[349718670,1737393040820,-500.0,0.00021917,3]
[349718672,1737393040831,-204.5019106,0.00021917,3]
[349718674,1737393040841,-500.0,0.00021917,3]
[349718676,1737393040853,-500.0,0.00021917,3]
[349718678,1737393040863,-862.57,0.00021917,3]
[349718680,1737393040874,-500.0,0.00021917,3]
[349718683,1737393040884,-500.0,0.00021917,3]
[349718685,1737393040895,-500.0,0.00021917,3]
[349718687,1737393040906,-500.0,0.00021917,3]
[349718689,1737393040917,-500.0,0.00021917,2]
[349718691,1737393040928,-500.0,0.00021917,3]
[349718693,1737393040939,-500.0,0.00021917,3]
[349718695,1737393040949,-500.0,0.00021917,3]
[349718697,1737393040962,-500.0,0.00021917,3]
[349718699,1737393040976,-500.0,0.00021917,3]
[349718702,1737393040986,-500.0,0.00021917,3]
[349718704,1737393040997,-500.0,0.00021917,3]
[349718706,1737393041007,-500.0,0.00021917,3]
[349718708,1737393041018,-500.0,0.00021917,3]